[Event "Titled Tuesday Blitz November 14 Early 2023"]
[White "Daneshvar, Bardiya"]
[Black "Zhigalko, Sergei"]
[WhiteFideId "12576468"]
[BlackFideId "13502956"]
[WhiteElo "2993"]
[BlackElo "2918"]
[Result "1-0"]
[Round "9"]
[TimeControl "180+1"]
[Date "2023.11.14"]
[WhiteClock "0:00:52"]
[BlackClock "0:00:00"]
[Board "7"]

1. Nf3 {[%clk 0:03:00]}  d5 {[%clk 0:02:59]} 2. e3 {[%clk 0:03:00]}  Nf6 {[%clk 0:02:59]} 3. c4 {[%clk 0:03:00]}  e6 {[%clk 0:02:59]} 4. Nc3 {[%clk 0:03:00]}  Bd6 {[%clk 0:02:56]} 5. b3 {[%clk 0:02:59]}  O-O {[%clk 0:02:56]} 6. Bb2 {[%clk 0:03:00]}  b6 {[%clk 0:02:50]} 7. cxd5 {[%clk 0:02:56]}  exd5 {[%clk 0:02:50]} 8. Rc1 {[%clk 0:02:57]}  a6 {[%clk 0:02:50]} 9. g3 {[%clk 0:02:57]}  Bb7 {[%clk 0:02:48]} 10. Bg2 {[%clk 0:02:57]}  Nbd7 {[%clk 0:02:48]} 11. O-O {[%clk 0:02:58]}  Re8 {[%clk 0:02:49]} 12. Ne2 {[%clk 0:02:57]}  Nc5 {[%clk 0:02:45]} 13. d3 {[%clk 0:02:50]}  Bf8 {[%clk 0:02:39]} 14. Nf4 {[%clk 0:02:49]}  a5 {[%clk 0:02:33]} 15. Nd4 {[%clk 0:02:45]}  g6 {[%clk 0:02:26]} 16. Rc2 {[%clk 0:02:35]}  Bg7 {[%clk 0:02:01]} 17. Qd2 {[%clk 0:02:09]}  Ng4 {[%clk 0:00:37]} 18. Rfc1 {[%clk 0:02:01]}  Qd7 {[%clk 0:00:27]} 19. Ba3 {[%clk 0:01:37]}  Na6 {[%clk 0:00:25]} 20. Nc6 {[%clk 0:01:26]}  Bxc6 {[%clk 0:00:24]} 21. Rxc6 {[%clk 0:01:27]}  Ne5 {[%clk 0:00:24]} 22. R6c2 {[%clk 0:01:17]}  d4 {[%clk 0:00:12]} 23. exd4 {[%clk 0:01:11]}  Qxd4 {[%clk 0:00:09]} 24. Bb2 {[%clk 0:01:11]}  Qd6 {[%clk 0:00:04]} 25. d4 {[%clk 0:01:10]}  Ng4 {[%clk 0:00:03]} 26. Bxa8 {[%clk 0:01:04]}  Rxa8 {[%clk 0:00:04]} 27. Qe2 {[%clk 0:01:03]}  Qd7 {[%clk 0:00:04]} 28. Qf3 {[%clk 0:00:55]}  Re8 {[%clk 0:00:03]} 29. Re2 {[%clk 0:00:54]}  Rxe2 {[%clk 0:00:02]} 30. Qxe2 {[%clk 0:00:55]}  h5 {[%clk 0:00:02]} 31. Qxa6 {[%clk 0:00:55]}  Bxd4 {[%clk 0:00:03]} 32. Bxd4 {[%clk 0:00:52]}  Qxd4 {[%clk 0:00:04]} 33. Qe2 {[%clk 0:00:52]}  Ne5 {[%clk 0:00:03]} 34. Re1 {[%clk 0:00:51]}  f6 {[%clk 0:00:02]} 35. Rd1 {[%clk 0:00:51]}  Qc3 {[%clk 0:00:02]} 36. Nd5 {[%clk 0:00:51]}  Qc5 {[%clk 0:00:01]} 37. Nxf6+ {[%clk 0:00:51]}  Kg7 {[%clk 0:00:01]} 38. Nd7 {[%clk 0:00:51]}  Nxd7 {[%clk 0:00:02]} 39. Rxd7+ {[%clk 0:00:52]}  Kh6 {[%clk 0:00:00]} 40. Qe3+ {[%clk 0:00:52]} 1-0


[Site "https://www.chess.com"]

[Event "Titled Tuesday Blitz November 14 Early 2023"]
[White "Kamsky, Gata"]
[Black "Khismatullin, Denis"]
[WhiteFideId "2000024"]
[BlackFideId "4142578"]
[WhiteElo "2912"]
[BlackElo "2962"]
[Result "1/2-1/2"]
[Round "9"]
[TimeControl "180+1"]
[Date "2023.11.14"]
[WhiteClock "0:00:22"]
[BlackClock "0:00:05"]
[Board "8"]

1. e4 {[%clk 0:03:00]}  c5 {[%clk 0:02:59]} 2. Nf3 {[%clk 0:02:58]}  d6 {[%clk 0:02:59]} 3. d4 {[%clk 0:02:57]}  cxd4 {[%clk 0:02:58]} 4. Nxd4 {[%clk 0:02:57]}  Nf6 {[%clk 0:02:58]} 5. Nc3 {[%clk 0:02:56]}  a6 {[%clk 0:02:58]} 6. a4 {[%clk 0:02:55]}  g6 {[%clk 0:02:57]} 7. Be2 {[%clk 0:02:54]}  Bg7 {[%clk 0:02:58]} 8. O-O {[%clk 0:02:54]}  O-O {[%clk 0:02:59]} 9. Be3 {[%clk 0:02:51]}  Nc6 {[%clk 0:02:59]} 10. Qd2 {[%clk 0:02:51]}  Bd7 {[%clk 0:02:59]} 11. Rfd1 {[%clk 0:02:50]}  Rc8 {[%clk 0:02:59]} 12. f3 {[%clk 0:02:48]}  Qc7 {[%clk 0:02:57]} 13. Nxc6 {[%clk 0:02:43]}  Bxc6 {[%clk 0:02:57]} 14. a5 {[%clk 0:02:42]}  Nd7 {[%clk 0:02:57]} 15. Ra2 {[%clk 0:02:21]}  Be5 {[%clk 0:02:56]} 16. b3 {[%clk 0:02:07]}  e6 {[%clk 0:02:47]} 17. Bd4 {[%clk 0:01:52]}  Rfd8 {[%clk 0:02:33]} 18. h3 {[%clk 0:01:42]}  d5 {[%clk 0:02:17]} 19. exd5 {[%clk 0:01:37]}  exd5 {[%clk 0:02:09]} 20. Bf1 {[%clk 0:01:30]}  Re8 {[%clk 0:02:07]} 21. Ne2 {[%clk 0:01:23]}  Bb5 {[%clk 0:01:58]} 22. Bxe5 {[%clk 0:01:16]}  Nxe5 {[%clk 0:01:57]} 23. Nd4 {[%clk 0:01:08]}  Bxf1 {[%clk 0:01:56]} 24. Rxf1 {[%clk 0:01:07]}  Nc6 {[%clk 0:01:53]} 25. f4 {[%clk 0:00:35]}  Re4 {[%clk 0:01:38]} 26. Nxc6 {[%clk 0:00:33]}  Qxc6 {[%clk 0:01:29]} 27. f5 {[%clk 0:00:33]}  Rce8 {[%clk 0:01:23]} 28. fxg6 {[%clk 0:00:33]}  hxg6 {[%clk 0:01:19]} 29. Qf2 {[%clk 0:00:33]}  R8e7 {[%clk 0:01:13]} 30. Qf6 {[%clk 0:00:22]}  Qc5+ {[%clk 0:01:05]} 31. Qf2 {[%clk 0:00:21]}  d4 {[%clk 0:01:00]} 32. Ra4 {[%clk 0:00:20]}  Re2 {[%clk 0:00:37]} 33. Qxd4 {[%clk 0:00:20]}  Qxd4+ {[%clk 0:00:34]} 34. Rxd4 {[%clk 0:00:19]}  Rxc2 {[%clk 0:00:34]} 35. Rf2 {[%clk 0:00:19]}  Re1+ {[%clk 0:00:33]} 36. Rf1 {[%clk 0:00:20]}  Ree2 {[%clk 0:00:33]} 37. Rg4 {[%clk 0:00:20]}  Kg7 {[%clk 0:00:31]} 38. b4 {[%clk 0:00:18]}  Rb2 {[%clk 0:00:30]} 39. h4 {[%clk 0:00:18]}  f6 {[%clk 0:00:24]} 40. Rf3 {[%clk 0:00:17]}  Kf7 {[%clk 0:00:19]} 41. Rfg3 {[%clk 0:00:17]}  Re1+ {[%clk 0:00:18]} 42. Kh2 {[%clk 0:00:17]}  Rbb1 {[%clk 0:00:18]} 43. Rc3 {[%clk 0:00:17]}  Rh1+ {[%clk 0:00:17]} 44. Kg3 {[%clk 0:00:18]}  Rhc1 {[%clk 0:00:17]} 45. Rxc1 {[%clk 0:00:16]}  Rxc1 {[%clk 0:00:17]} 46. Rd4 {[%clk 0:00:17]}  Ke6 {[%clk 0:00:16]} 47. Rg4 {[%clk 0:00:17]}  Rc3+ {[%clk 0:00:16]} 48. Kh2 {[%clk 0:00:16]}  Kf5 {[%clk 0:00:15]} 49. Rd4 {[%clk 0:00:16]}  Ke5 {[%clk 0:00:15]} 50. Rg4 {[%clk 0:00:16]}  Rb3 {[%clk 0:00:14]} 51. Rxg6 {[%clk 0:00:16]}  Rxb4 {[%clk 0:00:14]} 52. Kh3 {[%clk 0:00:16]}  Rb1 {[%clk 0:00:11]} 53. g4 {[%clk 0:00:15]}  Rb3+ {[%clk 0:00:10]} 54. Kg2 {[%clk 0:00:15]}  Kf4 {[%clk 0:00:10]} 55. h5 {[%clk 0:00:15]}  Rb2+ {[%clk 0:00:08]} 56. Kf1 {[%clk 0:00:15]}  Kf3 {[%clk 0:00:06]} 57. Rxf6+ {[%clk 0:00:15]}  Kxg4 {[%clk 0:00:07]} 58. h6 {[%clk 0:00:16]}  Rh2 {[%clk 0:00:04]} 59. Rb6 {[%clk 0:00:15]}  Kg5 {[%clk 0:00:04]} 60. Rxb7 {[%clk 0:00:15]}  Rxh6 {[%clk 0:00:03]} 61. Rb6 {[%clk 0:00:16]}  Rf6+ {[%clk 0:00:04]} 62. Ke2 {[%clk 0:00:16]}  Kf5 {[%clk 0:00:04]} 63. Kd3 {[%clk 0:00:16]}  Ke5 {[%clk 0:00:03]} 64. Rxf6 {[%clk 0:00:16]}  Kxf6 {[%clk 0:00:03]} 65. Kd4 {[%clk 0:00:16]}  Ke6 {[%clk 0:00:03]} 66. Kc5 {[%clk 0:00:17]}  Kd7 {[%clk 0:00:04]} 67. Kb6 {[%clk 0:00:18]}  Kc8 {[%clk 0:00:04]} 68. Kxa6 {[%clk 0:00:18]}  Kb8 {[%clk 0:00:04]} 69. Kb6 {[%clk 0:00:19]}  Ka8 {[%clk 0:00:05]} 70. a6 {[%clk 0:00:20]}  Kb8 {[%clk 0:00:05]} 71. a7+ {[%clk 0:00:21]}  Ka8 {[%clk 0:00:05]} 72. Ka6 {[%clk 0:00:22]} 1/2-1/2


[Site "https://www.chess.com"]

[Event "Titled Tuesday Blitz November 14 Early 2023"]
[White "Galchenko, Matvey"]
[Black "Steinberg, Nitzan"]
[WhiteFideId "24175480"]
[BlackFideId "2801795"]
[WhiteElo "2952"]
[BlackElo "2905"]
[Result "1-0"]
[Round "9"]
[TimeControl "180+1"]
[Date "2023.11.14"]
[WhiteClock "0:00:12"]
[BlackClock "0:00:01"]
[Board "9"]

1. e4 {[%clk 0:03:00]}  c5 {[%clk 0:03:00]} 2. c3 {[%clk 0:03:00]}  d5 {[%clk 0:03:00]} 3. exd5 {[%clk 0:03:01]}  Nf6 {[%clk 0:03:00]} 4. Qa4+ {[%clk 0:03:01]}  Nbd7 {[%clk 0:02:51]} 5. Qb3 {[%clk 0:02:58]}  Nb6 {[%clk 0:02:41]} 6. c4 {[%clk 0:02:58]}  e6 {[%clk 0:02:40]} 7. dxe6 {[%clk 0:02:57]}  Bxe6 {[%clk 0:02:40]} 8. d3 {[%clk 0:02:47]}  Bd6 {[%clk 0:02:38]} 9. Be2 {[%clk 0:02:46]}  O-O {[%clk 0:02:38]} 10. Nf3 {[%clk 0:02:47]}  Re8 {[%clk 0:02:38]} 11. Nc3 {[%clk 0:02:42]}  h6 {[%clk 0:01:54]} 12. O-O {[%clk 0:02:38]}  Bf5 {[%clk 0:01:48]} 13. Re1 {[%clk 0:02:26]}  a6 {[%clk 0:01:32]} 14. h3 {[%clk 0:02:24]}  Qc7 {[%clk 0:01:32]} 15. Be3 {[%clk 0:02:21]}  Rad8 {[%clk 0:01:31]} 16. d4 {[%clk 0:02:15]}  Nbd7 {[%clk 0:01:28]} 17. d5 {[%clk 0:01:32]}  Rxe3 {[%clk 0:01:27]} 18. fxe3 {[%clk 0:01:29]}  Re8 {[%clk 0:01:28]} 19. Bf1 {[%clk 0:01:25]}  Bg3 {[%clk 0:01:26]} 20. Red1 {[%clk 0:01:13]}  Rxe3 {[%clk 0:01:17]} 21. d6 {[%clk 0:00:46]}  Qb8 {[%clk 0:00:45]} 22. Rd2 {[%clk 0:00:37]}  Bxd6 {[%clk 0:00:33]} 23. Qd1 {[%clk 0:00:31]}  Bf4 {[%clk 0:00:30]} 24. Nd5 {[%clk 0:00:23]}  Re8 {[%clk 0:00:10]} 25. Nxf4 {[%clk 0:00:21]}  Qxf4 {[%clk 0:00:11]} 26. Re2 {[%clk 0:00:19]}  Ne4 {[%clk 0:00:11]} 27. Qc1 {[%clk 0:00:16]}  Qc7 {[%clk 0:00:11]} 28. Qe1 {[%clk 0:00:15]}  Ndf6 {[%clk 0:00:09]} 29. Rd1 {[%clk 0:00:16]}  Kh7 {[%clk 0:00:06]} 30. Re3 {[%clk 0:00:16]}  Qf4 {[%clk 0:00:06]} 31. Bd3 {[%clk 0:00:16]}  g6 {[%clk 0:00:03]} 32. Bxe4 {[%clk 0:00:15]}  Nxe4 {[%clk 0:00:03]} 33. Nd2 {[%clk 0:00:13]}  h5 {[%clk 0:00:02]} 34. Nxe4 {[%clk 0:00:13]}  Bxe4 {[%clk 0:00:03]} 35. Qf2 {[%clk 0:00:11]}  Qxf2+ {[%clk 0:00:03]} 36. Kxf2 {[%clk 0:00:12]}  Re7 {[%clk 0:00:04]} 37. g4 {[%clk 0:00:10]}  hxg4 {[%clk 0:00:04]} 38. hxg4 {[%clk 0:00:11]}  Kg7 {[%clk 0:00:04]} 39. g5 {[%clk 0:00:11]}  f5 {[%clk 0:00:03]} 40. gxf6+ {[%clk 0:00:12]}  Kxf6 {[%clk 0:00:04]} 41. Rde1 {[%clk 0:00:11]}  Kf5 {[%clk 0:00:04]} 42. Kg3 {[%clk 0:00:12]}  g5 {[%clk 0:00:05]} 43. b3 {[%clk 0:00:12]}  b6 {[%clk 0:00:04]} 44. Kf2 {[%clk 0:00:12]}  Kf4 {[%clk 0:00:04]} 45. Rf3+ {[%clk 0:00:11]}  Ke5 {[%clk 0:00:03]} 46. Rxe4+ {[%clk 0:00:11]}  Kxe4 {[%clk 0:00:01]} 47. Re3+ {[%clk 0:00:12]} 1-0


[Site "https://www.chess.com"]

[Event "Titled Tuesday Blitz November 14 Early 2023"]
[White "Kozak, Antoni"]
[Black "Nihal Sarin"]
[WhiteFideId "21832030"]
[BlackFideId "25092340"]
[WhiteElo "2847"]
[BlackElo "3107"]
[Result "0-1"]
[Round "9"]
[TimeControl "180+1"]
[Date "2023.11.14"]
[WhiteClock "0:00:02"]
[BlackClock "0:00:05"]
[Board "10"]

1. Nf3 {[%clk 0:03:00]}  d5 {[%clk 0:02:59]} 2. e3 {[%clk 0:03:00]}  Nf6 {[%clk 0:02:59]} 3. c4 {[%clk 0:02:58]}  e6 {[%clk 0:03:00]} 4. b3 {[%clk 0:02:58]}  b6 {[%clk 0:03:00]} 5. Bb2 {[%clk 0:02:58]}  Bb7 {[%clk 0:03:00]} 6. cxd5 {[%clk 0:02:56]}  exd5 {[%clk 0:03:01]} 7. g3 {[%clk 0:02:56]}  Nbd7 {[%clk 0:03:00]} 8. Bg2 {[%clk 0:02:56]}  Bd6 {[%clk 0:03:01]} 9. O-O {[%clk 0:02:56]}  a6 {[%clk 0:03:01]} 10. Nc3 {[%clk 0:02:56]}  O-O {[%clk 0:03:01]} 11. Ne2 {[%clk 0:02:56]}  Re8 {[%clk 0:03:01]} 12. Rc1 {[%clk 0:02:56]}  g6 {[%clk 0:03:02]} 13. Nf4 {[%clk 0:02:49]}  Qe7 {[%clk 0:02:57]} 14. Rc2 {[%clk 0:02:47]}  a5 {[%clk 0:02:49]} 15. Nd4 {[%clk 0:02:32]}  a4 {[%clk 0:02:47]} 16. Nb5 {[%clk 0:02:20]}  axb3 {[%clk 0:02:46]} 17. axb3 {[%clk 0:02:20]}  c6 {[%clk 0:02:19]} 18. Nxd6 {[%clk 0:02:20]}  Qxd6 {[%clk 0:02:20]} 19. Rc1 {[%clk 0:02:07]}  Ra2 {[%clk 0:02:14]} 20. Qc2 {[%clk 0:02:01]}  Rea8 {[%clk 0:02:14]} 21. Ra1 {[%clk 0:01:59]}  Qb4 {[%clk 0:02:05]} 22. Nd3 {[%clk 0:01:49]}  Qb5 {[%clk 0:02:02]} 23. Rfb1 {[%clk 0:01:32]}  c5 {[%clk 0:01:51]} 24. Rxa2 {[%clk 0:01:20]}  Rxa2 {[%clk 0:01:52]} 25. Ra1 {[%clk 0:01:20]}  Rxa1+ {[%clk 0:01:49]} 26. Bxa1 {[%clk 0:01:20]}  Qa6 {[%clk 0:01:34]} 27. Bc3 {[%clk 0:01:15]}  Ne4 {[%clk 0:01:33]} 28. Bb2 {[%clk 0:01:08]}  Qa5 {[%clk 0:01:27]} 29. b4 {[%clk 0:00:54]}  Qb5 {[%clk 0:01:13]} 30. bxc5 {[%clk 0:00:53]}  bxc5 {[%clk 0:01:13]} 31. Nf4 {[%clk 0:00:37]}  Qb4 {[%clk 0:00:56]} 32. Bc1 {[%clk 0:00:06]}  c4 {[%clk 0:00:37]} 33. h3 {[%clk 0:00:05]}  Ndc5 {[%clk 0:00:36]} 34. g4 {[%clk 0:00:04]}  g5 {[%clk 0:00:21]} 35. Nh5 {[%clk 0:00:04]}  Qb3 {[%clk 0:00:22]} 36. Bxe4 {[%clk 0:00:01]}  dxe4 {[%clk 0:00:20]} 37. Qb2 {[%clk 0:00:01]}  Ne6 {[%clk 0:00:06]} 38. Nf6+ {[%clk 0:00:01]}  Kf8 {[%clk 0:00:07]} 39. Nh5 {[%clk 0:00:01]}  Ke8 {[%clk 0:00:06]} 40. Nf6+ {[%clk 0:00:01]}  Kd8 {[%clk 0:00:06]} 41. Nxh7 {[%clk 0:00:01]}  Kc8 {[%clk 0:00:05]} 42. Qxb3 {[%clk 0:00:01]}  cxb3 {[%clk 0:00:05]} 43. Ba3 {[%clk 0:00:02]}  Kd7 {[%clk 0:00:04]} 44. Kg2 {[%clk 0:00:02]}  Kc6 {[%clk 0:00:05]} 45. Kg3 {[%clk 0:00:03]}  Kb5 {[%clk 0:00:05]} 46. h4 {[%clk 0:00:04]}  gxh4+ {[%clk 0:00:06]} 47. Kxh4 {[%clk 0:00:04]}  Kc4 {[%clk 0:00:05]} 48. Nf6 {[%clk 0:00:05]}  Kd3 {[%clk 0:00:05]} 49. Nd7 {[%clk 0:00:05]}  Kc2 {[%clk 0:00:04]} 50. Ne5 {[%clk 0:00:05]}  Nc7 {[%clk 0:00:04]} 51. Nc4 {[%clk 0:00:04]}  Nb5 {[%clk 0:00:04]} 52. Bb2 {[%clk 0:00:04]}  Bd5 {[%clk 0:00:04]} 53. Nb6 {[%clk 0:00:04]}  Kxb2 {[%clk 0:00:03]} 54. Nxd5 {[%clk 0:00:05]}  Kc1 {[%clk 0:00:04]} 55. Nf4 {[%clk 0:00:02]}  b2 {[%clk 0:00:04]} 56. d3 {[%clk 0:00:01]}  b1=Q {[%clk 0:00:04]} 57. Ne2+ {[%clk 0:00:02]}  Kd2 {[%clk 0:00:04]} 58. Nf4 {[%clk 0:00:02]}  exd3 {[%clk 0:00:05]} 0-1


[Site "https://www.chess.com"]

[Event "Titled Tuesday Blitz November 14 Early 2023"]
[White "Duda, Jan-Krzysztof"]
[Black "Rakhmanov, Aleksandr"]
[WhiteFideId "1170546"]
[BlackFideId "4173708"]
[WhiteElo "3088"]
[BlackElo "2850"]
[Result "0-1"]
[Round "9"]
[TimeControl "180+1"]
[Date "2023.11.14"]
[WhiteClock "0:00:00"]
[BlackClock "0:00:05"]
[Board "11"]

1. d4 {[%clk 0:03:00]}  Nf6 {[%clk 0:02:59]} 2. c4 {[%clk 0:03:01]}  d6 {[%clk 0:03:00]} 3. Nf3 {[%clk 0:02:57]}  g6 {[%clk 0:03:00]} 4. g3 {[%clk 0:02:55]}  Bg7 {[%clk 0:03:00]} 5. Bg2 {[%clk 0:02:55]}  c6 {[%clk 0:03:00]} 6. Nc3 {[%clk 0:02:54]}  Bf5 {[%clk 0:03:00]} 7. O-O {[%clk 0:02:46]}  O-O {[%clk 0:03:00]} 8. Ng5 {[%clk 0:02:33]}  e5 {[%clk 0:02:54]} 9. d5 {[%clk 0:02:27]}  cxd5 {[%clk 0:02:48]} 10. Nxd5 {[%clk 0:02:26]}  Nc6 {[%clk 0:02:43]} 11. Nxf6+ {[%clk 0:02:15]}  Qxf6 {[%clk 0:02:31]} 12. Ne4 {[%clk 0:02:16]}  Bxe4 {[%clk 0:02:30]} 13. Bxe4 {[%clk 0:02:16]}  Rac8 {[%clk 0:02:26]} 14. Be3 {[%clk 0:02:13]}  Nd4 {[%clk 0:02:22]} 15. Rc1 {[%clk 0:02:09]}  b6 {[%clk 0:02:17]} 16. h4 {[%clk 0:01:51]}  h6 {[%clk 0:02:09]} 17. Qd2 {[%clk 0:01:46]}  Nf5 {[%clk 0:02:09]} 18. Rfd1 {[%clk 0:01:42]}  Rfd8 {[%clk 0:01:57]} 19. a4 {[%clk 0:01:30]}  Qe7 {[%clk 0:01:38]} 20. Bxf5 {[%clk 0:01:26]}  gxf5 {[%clk 0:01:38]} 21. Bxh6 {[%clk 0:01:26]}  f4 {[%clk 0:01:30]} 22. Bxg7 {[%clk 0:01:20]}  Kxg7 {[%clk 0:01:31]} 23. Rc3 {[%clk 0:01:16]}  Qf6 {[%clk 0:01:21]} 24. b3 {[%clk 0:00:56]}  fxg3 {[%clk 0:01:17]} 25. fxg3 {[%clk 0:00:51]}  d5 {[%clk 0:01:07]} 26. Rf3 {[%clk 0:00:49]}  dxc4 {[%clk 0:01:06]} 27. Qe1 {[%clk 0:00:26]}  Rxd1 {[%clk 0:01:01]} 28. Qxd1 {[%clk 0:00:27]}  Qe6 {[%clk 0:00:58]} 29. bxc4 {[%clk 0:00:26]}  Rxc4 {[%clk 0:00:58]} 30. Kh2 {[%clk 0:00:24]}  Rd4 {[%clk 0:00:48]} 31. Qc1 {[%clk 0:00:23]}  Qg6 {[%clk 0:00:32]} 32. Qc7 {[%clk 0:00:15]}  Re4 {[%clk 0:00:27]} 33. e3 {[%clk 0:00:16]}  Qh5 {[%clk 0:00:13]} 34. Kg2 {[%clk 0:00:12]}  Rxa4 {[%clk 0:00:13]} 35. Qc2 {[%clk 0:00:04]}  Qg4 {[%clk 0:00:13]} 36. Qf2 {[%clk 0:00:03]}  Qe6 {[%clk 0:00:11]} 37. Rf5 {[%clk 0:00:00]}  Ra2 {[%clk 0:00:05]} 0-1


[Site "https://www.chess.com"]

[Event "Titled Tuesday Blitz November 14 Early 2023"]
[White "Vokhidov, Shamsiddin"]
[Black "Narayanan, Srinath"]
[WhiteFideId "14204223"]
[BlackFideId "5018420"]
[WhiteElo "3000"]
[BlackElo "2809"]
[Result "1-0"]
[Round "9"]
[TimeControl "180+1"]
[Date "2023.11.14"]
[WhiteClock "0:01:13"]
[BlackClock "0:00:07"]
[Board "14"]

1. e4 {[%clk 0:03:00]}  c5 {[%clk 0:02:59]} 2. Nf3 {[%clk 0:03:01]}  d6 {[%clk 0:02:58]} 3. Bb5+ {[%clk 0:03:01]}  Bd7 {[%clk 0:02:58]} 4. Bxd7+ {[%clk 0:03:00]}  Nxd7 {[%clk 0:02:59]} 5. O-O {[%clk 0:03:00]}  Ngf6 {[%clk 0:02:59]} 6. Qe2 {[%clk 0:03:00]}  e6 {[%clk 0:02:59]} 7. b3 {[%clk 0:03:00]}  g6 {[%clk 0:02:56]} 8. Bb2 {[%clk 0:03:01]}  Bg7 {[%clk 0:02:57]} 9. c4 {[%clk 0:03:02]}  O-O {[%clk 0:02:56]} 10. d4 {[%clk 0:03:02]}  cxd4 {[%clk 0:02:57]} 11. Nxd4 {[%clk 0:03:02]}  Nc5 {[%clk 0:02:43]} 12. f3 {[%clk 0:03:00]}  Re8 {[%clk 0:02:34]} 13. Nc3 {[%clk 0:02:59]}  Qb6 {[%clk 0:02:22]} 14. Kh1 {[%clk 0:02:59]}  Rad8 {[%clk 0:02:08]} 15. Rfd1 {[%clk 0:02:56]}  d5 {[%clk 0:02:01]} 16. e5 {[%clk 0:02:51]}  Nh5 {[%clk 0:02:00]} 17. Ba3 {[%clk 0:02:36]}  Nf4 {[%clk 0:01:30]} 18. Qe3 {[%clk 0:02:35]}  dxc4 {[%clk 0:01:27]} 19. Qxf4 {[%clk 0:02:10]}  Nd3 {[%clk 0:01:26]} 20. Rxd3 {[%clk 0:02:09]}  cxd3 {[%clk 0:01:27]} 21. Ndb5 {[%clk 0:02:00]}  Rd7 {[%clk 0:01:02]} 22. Nd6 {[%clk 0:01:50]}  Red8 {[%clk 0:01:02]} 23. Nce4 {[%clk 0:01:45]}  Qa5 {[%clk 0:00:42]} 24. Bb2 {[%clk 0:01:44]}  Rc7 {[%clk 0:00:25]} 25. h4 {[%clk 0:01:28]}  Rdd7 {[%clk 0:00:17]} 26. Nf6+ {[%clk 0:01:17]}  Bxf6 {[%clk 0:00:16]} 27. Qxf6 {[%clk 0:01:18]}  Qd2 {[%clk 0:00:12]} 28. Ne8 {[%clk 0:01:16]}  Kf8 {[%clk 0:00:07]} 29. Qh8+ {[%clk 0:01:13]}  Ke7 {[%clk 0:00:07]} 30. Ba3+ {[%clk 0:01:14]}  Kd8 {[%clk 0:00:07]} 31. Nf6# {[%clk 0:01:13]} 1-0


[Site "https://www.chess.com"]

[Event "Titled Tuesday Blitz November 14 Early 2023"]
[White "Matlakov, Maxim"]
[Black "Borsuk, Konstantin"]
[WhiteFideId "4168003"]
[BlackFideId "14113406"]
[WhiteElo "2952"]
[BlackElo "2789"]
[Result "1-0"]
[Round "9"]
[TimeControl "180+1"]
[Date "2023.11.14"]
[WhiteClock "0:00:35"]
[BlackClock "0:00:00"]
[Board "17"]

1. d4 {[%clk 0:03:00]}  Nf6 {[%clk 0:02:59]} 2. Nf3 {[%clk 0:03:00]}  e6 {[%clk 0:02:59]} 3. Bg5 {[%clk 0:03:00]}  b6 {[%clk 0:02:57]} 4. Nbd2 {[%clk 0:02:59]}  Bb7 {[%clk 0:02:57]} 5. e3 {[%clk 0:02:59]}  h6 {[%clk 0:02:55]} 6. Bf4 {[%clk 0:02:56]}  d6 {[%clk 0:02:55]} 7. Bd3 {[%clk 0:02:52]}  Nbd7 {[%clk 0:02:55]} 8. Qe2 {[%clk 0:02:52]}  a6 {[%clk 0:02:54]} 9. e4 {[%clk 0:02:49]}  g5 {[%clk 0:02:51]} 10. Be3 {[%clk 0:02:48]}  Ng4 {[%clk 0:02:50]} 11. Nf1 {[%clk 0:02:47]}  Nxe3 {[%clk 0:02:44]} 12. Nxe3 {[%clk 0:02:48]}  Bg7 {[%clk 0:02:42]} 13. O-O-O {[%clk 0:02:47]}  Qe7 {[%clk 0:02:40]} 14. c3 {[%clk 0:02:45]}  b5 {[%clk 0:02:39]} 15. Nd2 {[%clk 0:02:41]}  c5 {[%clk 0:02:37]} 16. Nf3 {[%clk 0:02:32]}  c4 {[%clk 0:02:30]} 17. Bc2 {[%clk 0:02:32]}  O-O-O {[%clk 0:02:24]} 18. h4 {[%clk 0:02:29]}  Kb8 {[%clk 0:02:23]} 19. Kb1 {[%clk 0:02:25]}  Rc8 {[%clk 0:02:16]} 20. Nd2 {[%clk 0:02:11]}  gxh4 {[%clk 0:02:11]} 21. Qh5 {[%clk 0:02:01]}  Bf6 {[%clk 0:02:07]} 22. f4 {[%clk 0:01:57]}  Nb6 {[%clk 0:01:56]} 23. Nf3 {[%clk 0:01:47]}  Qc7 {[%clk 0:01:50]} 24. Nxh4 {[%clk 0:01:33]}  Na4 {[%clk 0:01:46]} 25. Nf3 {[%clk 0:01:25]}  Bg7 {[%clk 0:01:36]} 26. a3 {[%clk 0:01:23]}  Qd7 {[%clk 0:01:26]} 27. Bxa4 {[%clk 0:01:21]}  bxa4 {[%clk 0:01:25]} 28. Nd2 {[%clk 0:01:21]}  d5 {[%clk 0:01:06]} 29. e5 {[%clk 0:01:12]}  Ka7 {[%clk 0:00:56]} 30. Ka2 {[%clk 0:01:11]}  Rb8 {[%clk 0:00:56]} 31. f5 {[%clk 0:01:08]}  Bc6 {[%clk 0:00:54]} 32. Rhf1 {[%clk 0:01:06]}  Rb7 {[%clk 0:00:54]} 33. Rb1 {[%clk 0:01:04]}  Rhb8 {[%clk 0:00:53]} 34. Qd1 {[%clk 0:00:55]}  Bf8 {[%clk 0:00:51]} 35. g4 {[%clk 0:00:53]}  Ka8 {[%clk 0:00:41]} 36. Nc2 {[%clk 0:00:53]}  a5 {[%clk 0:00:41]} 37. Ka1 {[%clk 0:00:52]}  Rb3 {[%clk 0:00:40]} 38. Nxb3 {[%clk 0:00:49]}  axb3 {[%clk 0:00:39]} 39. Ne3 {[%clk 0:00:49]}  Qe8 {[%clk 0:00:32]} 40. fxe6 {[%clk 0:00:46]}  fxe6 {[%clk 0:00:32]} 41. Rf6 {[%clk 0:00:46]}  Bd7 {[%clk 0:00:31]} 42. Qh1 {[%clk 0:00:43]}  Ka7 {[%clk 0:00:21]} 43. Nxd5 {[%clk 0:00:39]}  Bc6 {[%clk 0:00:16]} 44. Nc7 {[%clk 0:00:38]}  Qd7 {[%clk 0:00:13]} 45. d5 {[%clk 0:00:38]}  Bb7 {[%clk 0:00:00]} 46. Qg1+ {[%clk 0:00:35]} 1-0


[Site "https://www.chess.com"]